bitfinex/quotes_BTCUSD_20260310
["timestamp","ask_amount","ask_price","bid_price","bid_amount"]
[1773170270399,0.00148,70234.0,70223.0,0.0367529]
[1773170270593,0.00148,70233.0,70223.0,0.0367529]
[1773170271007,0.00148,70233.0,70225.0,0.0367529]
[1773170273131,0.00148,70233.0,70226.0,0.0711987]
[1773170274675,0.00148,70233.0,70227.0,0.0367529]
[1773170275275,0.00148,70233.0,70228.0,0.07119667]
[1773170275447,0.03,70232.0,70219.0,0.07120536]
[1773170275678,0.03,70232.0,70221.0,0.07157796]
[1773170275895,0.00148,70231.0,70221.0,0.07157796]
[1773170276092,0.00148,70231.0,70221.0,0.00037437]
[1773170276529,0.03148,70231.0,70221.0,0.07157804]
[1773170277619,0.00148,70231.0,70221.0,0.07157804]
[1773170277819,0.00148,70231.0,70221.0,0.00037437]
[1773170278029,0.00148,70231.0,70221.0,0.07157784]
[1773170278356,0.00148,70231.0,70186.0,0.0002]
[1773170278357,0.03,70230.0,70210.0,0.07121477]
[1773170278536,0.03,70230.0,70208.0,0.07683612]
[1773170278537,0.03,70228.0,70209.0,0.0367529]
[1773170278738,0.03,70228.0,70208.0,0.11358922]
[1773170279297,0.03,70226.0,70208.0,0.11358922]
[1773170280485,0.03,70226.0,70208.0,0.00562]
[1773170281381,0.03,70224.0,70195.0,0.04362769]
[1773170281558,0.00148,70223.0,70202.0,0.07190292]
[1773170281759,0.00148,70223.0,70202.0,0.00068]
[1773170282005,0.00148,70223.0,70202.0,0.07190296]
[1773170282555,0.03,70224.0,70213.0,0.0002]
[1773170282730,0.00148,70222.0,70213.0,0.0002]
[1773170283368,0.03,70220.0,70213.0,0.0002]
[1773170284404,0.07120377,70222.0,70214.0,0.04375648]
[1773170284405,0.00148,70222.0,70214.0,0.04375648]
[1773170284644,0.07119647,70229.0,70214.0,0.04375648]
[1773170284972,0.00148,70228.0,70214.0,0.04375648]
[1773170285335,0.03,70226.0,70214.0,0.04375648]
[1773170285542,0.03,70226.0,70215.0,0.0521694]
[1773170285745,0.00037437,70230.0,70215.0,0.0521694]
[1773170285960,0.00148,70229.0,70215.0,0.0521694]
[1773170286365,0.00148,70228.0,70215.0,0.0521694]
[1773170286548,0.03148,70227.0,70215.0,0.00037437]
[1773170287544,0.03,70225.0,70215.0,0.00037437]
[1773170289470,0.07267802,70227.0,70215.0,0.00037437]
[1773170289471,0.03,70224.0,70215.0,0.00037437]
[1773170289670,0.03,70224.0,70215.0,0.071584]
[1773170289872,0.03,70224.0,70215.0,0.00037437]
[1773170290076,0.03,70224.0,70215.0,0.07158379]
[1773170290273,0.07118957,70235.0,70216.0,0.04178437]
[1773170290511,0.03148,70234.0,70216.0,0.04178437]
[1773170291105,0.03,70234.0,70216.0,0.04178437]
[1773170291311,0.00148,70233.0,70216.0,0.04178437]
[1773170291521,0.03,70233.0,70218.0,0.04154571]
[1773170291772,0.00562,70236.0,70218.0,0.04154571]
[1773170291977,0.00023,70250.0,70221.0,0.04154571]
[1773170292182,0.23361051,70250.0,70221.0,0.04154571]
[1773170292358,0.00148,70249.0,70221.0,0.04154571]
[1773170292576,0.03148,70249.0,70221.0,0.04154571]
[1773170293162,0.00148,70248.0,70221.0,0.04154571]
[1773170293528,0.00148,70248.0,70222.0,0.07120275]
[1773170293529,0.03,70246.0,70222.0,0.07120275]
[1773170293726,0.00148,70245.0,70223.0,0.04358434]
[1773170294147,0.00148,70244.0,70223.0,0.04358434]
[1773170294583,0.03,70246.0,70223.0,0.04358434]
[1773170294733,0.00148,70243.0,70223.0,0.04358434]
[1773170294953,0.03,70246.0,70223.0,0.04358434]
[1773170295278,0.00148,70245.0,70223.0,0.04358434]
[1773170295489,0.03,70246.0,70223.0,0.04358434]
[1773170295699,0.03,70242.0,70225.0,0.04354058]
[1773170296743,0.00148,70244.0,70225.0,0.04354058]
[1773170296970,0.00148,70244.0,70225.0,0.03354058]
[1773170298022,0.00148,70244.0,70226.0,0.0711987]
[1773170298219,0.00148,70244.0,70227.0,0.03852551]
[1773170298623,0.03148,70244.0,70227.0,0.03852551]
[1773170299620,0.00022001,70242.0,70227.0,0.03852551]
[1773170300050,0.12492,70262.0,70226.0,0.0711987]
[1773170300051,0.00148,70241.0,70233.0,0.0711916]
[1773170300397,0.00045001,70250.0,70234.0,0.04348814]
[1773170300607,0.00148,70249.0,70234.0,0.04348814]
[1773170301435,0.03,70254.0,70234.0,0.04348814]
[1773170301629,0.00148,70253.0,70234.0,0.04348814]
[1773170301875,0.00148,70252.0,70234.0,0.04348814]
[1773170302302,0.03,70256.0,70236.0,0.04346795]
[1773170302508,0.07148341,70257.0,70235.0,0.11465752]
[1773170302509,0.00148,70251.0,70235.0,0.11465752]
[1773170302714,0.03,70249.0,70227.0,0.04346795]
[1773170303122,0.03,70249.0,70226.0,0.0711987]
[1773170303269,0.03,70249.0,70226.0,0.0611987]
[1773170303478,0.03,70249.0,70227.0,0.04344]
[1773170303852,0.03,70248.0,70226.0,0.0711987]
[1773170304271,0.03,70245.0,70228.0,0.07119667]
[1773170304464,0.03,70245.0,70229.0,0.04344]
[1773170304882,0.00148,70244.0,70229.0,0.04344]
[1773170306555,0.00148,70244.0,70231.0,0.04343151]
[1773170307663,0.03148,70244.0,70231.0,0.04343151]
[1773170308514,0.03,70244.0,70232.0,0.07119261]
[1773170308714,0.07117215,70253.0,70232.0,0.07119261]
[1773170308715,0.03,70254.0,70235.0,0.04369247]
[1773170309076,0.00148,70253.0,70235.0,0.04369247]
[1773170310569,0.00148,70253.0,70227.0,0.04369247]
[1773170310570,0.09132581,70251.0,70227.0,0.04369247]
[1773170310771,0.03,70249.0,70227.0,0.04369247]
[1773170311172,0.00148,70248.0,70227.0,0.04369247]
[1773170311367,0.00148,70248.0,70226.0,0.0711987]
[1773170311368,0.00148,70248.0,70228.0,0.00144]
[1773170311707,0.07116841,70256.0,70228.0,0.00144]
[1773170311708,0.00148,70252.0,70233.0,0.03205224]
[1773170311874,0.00148,70251.0,70233.0,0.03205224]
[1773170312579,0.00148,70251.0,70234.0,0.07119059]
[1773170312729,0.00148,70251.0,70235.0,0.03199079]
[1773170313130,0.03,70250.0,70235.0,0.03199079]
[1773170314199,0.00148,70251.0,70234.0,0.07119059]
[1773170314200,0.03,70249.0,70234.0,0.07119059]
[1773170314355,0.03,70249.0,70231.0,0.03199079]
[1773170314557,0.00144,70248.0,70231.0,0.03199079]
[1773170314755,0.00144,70248.0,70233.0,0.03199394]
[1773170315216,0.00144,70247.0,70233.0,0.03199394]
[1773170315516,0.03,70252.0,70233.0,0.03199394]
[1773170315719,0.00144,70246.0,70233.0,0.03199394]
[1773170316494,0.03,70251.0,70233.0,0.03199394]
[1773170316710,0.00144,70250.0,70233.0,0.03199394]
[1773170316909,0.00144,70250.0,70235.0,0.03190892]
[1773170317109,0.00144,70249.0,70235.0,0.03190892]
[1773170317311,0.000316,70257.0,70237.0,0.03190892]
[1773170317531,0.03144,70256.0,70237.0,0.03190892]
[1773170317767,0.00144,70255.0,70237.0,0.03190892]
[1773170318592,0.00155226,70255.0,70237.0,0.03190892]
[1773170318789,0.00144,70254.0,70237.0,0.03190892]
[1773170318992,0.07116728,70258.0,70238.0,0.07118653]
[1773170319192,0.03144,70257.0,70239.0,0.03183063]
[1773170319396,0.03,70257.0,70239.0,0.03183063]
[1773170319628,0.00144,70256.0,70239.0,0.03183063]
[1773170319889,0.00562,70264.0,70239.0,0.03183063]
[1773170320097,0.00023,70275.0,70251.0,0.03183063]
[1773170320263,0.00023,70275.0,70253.0,0.03183063]
[1773170320264,0.03,70274.0,70253.0,0.03183063]
[1773170320459,0.03144,70274.0,70253.0,0.03183063]
[1773170320769,0.00144,70273.0,70253.0,0.03183063]
[1773170321090,0.03,70271.0,70254.0,0.07117032]
[1773170321315,0.03,70271.0,70245.0,0.21252077]
[1773170321316,0.03,70271.0,70250.0,0.0711742]
[1773170321517,0.03,70271.0,70245.0,0.07117887]
[1773170321787,0.03,70269.0,70244.0,0.01591183]
[1773170322104,0.03,70269.0,70244.0,0.00591183]
[1773170322306,0.00144,70268.0,70244.0,0.00591183]
[1773170322684,0.03144,70268.0,70244.0,0.00591183]
[1773170323687,0.03,70266.0,70245.0,0.07117944]
[1773170324334,0.03,70266.0,70246.0,0.01084448]
[1773170325338,0.00144,70265.0,70246.0,0.01084448]
[1773170325837,0.03144,70264.0,70248.0,0.01076172]
[1773170326677,0.03,70264.0,70248.0,0.01076172]
[1773170326856,0.03144,70263.0,70248.0,0.01076172]
[1773170327718,0.03,70263.0,70249.0,0.07117539]
[1773170327868,0.03144,70262.0,70250.0,0.01068332]
[1773170328264,0.03,70262.0,70250.0,0.01212332]
[1773170328826,0.00022001,70268.0,70250.0,0.01212332]
[1773170329232,0.00166001,70268.0,70250.0,0.01212332]
[1773170329607,0.00144,70268.0,70250.0,0.01212332]
[1773170329810,0.00144,70268.0,70251.0,0.07117336]
[1773170329973,0.00144,70268.0,70252.0,0.0105952]
[1773170330311,0.03,70267.0,70252.0,0.0105952]
[1773170331299,0.03,70266.0,70252.0,0.0105952]
[1773170332120,0.03,70266.0,70254.0,0.01052083]
[1773170332457,0.00144,70269.0,70254.0,0.01052083]
[1773170332831,0.0015821,70269.0,70254.0,0.01052083]
[1773170333037,0.0015821,70269.0,70254.0,0.01196083]
[1773170333338,0.0015821,70269.0,70251.0,0.07117336]
[1773170334013,0.03,70267.0,70251.0,0.01046154]
[1773170334632,0.0301421,70267.0,70251.0,0.01046154]
[1773170335058,0.03144,70266.0,70251.0,0.01046154]
[1773170335215,0.00144,70265.0,70251.0,0.01046154]
[1773170335411,0.03,70266.0,70251.0,0.01046154]
[1773170335612,0.0002292,70272.0,70251.0,0.01046154]
[1773170335613,0.0016692,70272.0,70251.0,0.01046154]
[1773170335927,0.00144,70275.0,70260.0,0.16216701]
[1773170336115,0.00144,70284.0,70263.0,0.01039687]
[1773170336340,0.00144,70283.0,70263.0,0.01183687]
[1773170336533,0.00144,70282.0,70263.0,0.01183687]
[1773170336778,0.00144,70282.0,70263.0,0.01039687]
[1773170336979,0.00144,70282.0,70263.0,0.01183687]
[1773170337286,0.00155222,70282.0,70263.0,0.01039687]
[1773170337904,0.00155222,70282.0,70256.0,0.21252077]
[1773170338069,0.03,70280.0,70258.0,0.01074742]
[1773170340787,0.03,70278.0,70260.0,0.01104855]
[1773170341169,0.03,70278.0,70261.0,0.00144]
[1773170341374,0.00023,70300.0,70262.0,0.01104855]
[1773170341573,0.07135583,70298.0,70270.0,0.16216701]
[1773170341773,0.07135583,70298.0,70262.0,0.00011222]
[1773170341774,0.03144,70291.0,70271.0,0.01248855]
[1773170341988,0.00144,70290.0,70271.0,0.01104855]
[1773170342187,0.00144,70290.0,70262.0,0.00011222]
[1773170342188,0.03,70288.0,70263.0,0.01104855]
[1773170342388,0.03,70288.0,70266.0,0.00144]
[1773170342594,0.03,70288.0,70267.0,0.01104855]
[1773170342884,0.03,70284.0,70268.0,0.07115614]
[1773170343087,0.03,70284.0,70267.0,0.0711567]
[1773170343462,0.00144,70283.0,70267.0,0.0711567]
[1773170344730,0.00144,70282.0,70267.0,0.0711567]
[1773170344932,0.03,70284.0,70268.0,0.01103876]
[1773170345093,0.0711382,70286.0,70268.0,0.01103876]
[1773170345290,0.0711382,70286.0,70267.0,0.0711567]
[1773170345291,0.07113005,70294.0,70270.0,0.01103876]
[1773170345491,0.07112831,70296.0,70270.0,0.01103876]
[1773170345726,0.07135519,70298.0,70271.0,0.01103876]
[1773170345727,0.0002292,70298.0,70271.0,0.01103876]
[1773170345904,0.07111483,70309.0,70269.0,0.00144]
[1773170345905,0.00144,70313.0,70281.0,0.01103876]
[1773170346110,0.10111314,70311.0,70283.0,0.01103876]
[1773170346367,0.10111314,70311.0,70283.0,0.01075219]
[1773170346581,0.03,70309.0,70283.0,0.01075219]
[1773170346986,0.03,70309.0,70285.0,0.0108325]
[1773170347363,0.03,70309.0,70285.0,0.0008325]
[1773170347571,0.03,70308.0,70285.0,0.0008325]
[1773170347940,0.07111465,70309.0,70285.0,0.0008325]
[1773170347941,0.03,70306.0,70285.0,0.0008325]
[1773170348145,0.03,70304.0,70284.0,0.07113994]
[1773170348347,0.00037399,70306.0,70280.0,0.01077188]
[1773170348348,0.03919212,70299.0,70280.0,0.07114363]
[1773170348670,0.03,70297.0,70280.0,0.07114363]
[1773170348874,0.00144,70296.0,70280.0,0.07114363]
[1773170349082,0.03144,70295.0,70280.0,0.07114363]
[1773170351884,0.03,70293.0,70279.0,0.01187363]
[1773170354603,0.10113092,70293.0,70280.0,0.07114399]
[1773170354849,0.03,70292.0,70280.0,0.07114399]
[1773170355931,0.05976585,70288.0,70275.0,0.00023]
[1773170356138,0.03144,70287.0,70275.0,0.07137903]
[1773170356345,0.03144,70287.0,70275.0,0.00023]
[1773170356776,0.03,70285.0,70275.0,0.00023]
[1773170357388,0.00144,70284.0,70275.0,0.07137815]
[1773170357782,0.00144,70283.0,70275.0,0.08071003]
[1773170358397,0.00144,70283.0,70271.0,0.0002]
[1773170358607,0.00144,70283.0,70272.0,0.07115209]
[1773170358780,0.03,70281.0,70271.0,1.795e-05]
[1773170359947,0.03,70280.0,70271.0,1.795e-05]
[1773170360946,0.10114328,70281.0,70271.0,1.795e-05]
[1773170361746,0.10114328,70281.0,70271.0,0.00021795]
[1773170362360,0.03,70281.0,70271.0,0.00021795]
[1773170362581,0.10114331,70281.0,70271.0,0.00021795]
[1773170362718,0.10114331,70281.0,70264.0,0.00562]
[1773170362719,0.03,70275.0,70264.0,0.00562]
[1773170362917,0.00144,70274.0,70264.0,0.07677992]
[1773170364810,0.03,70270.0,70253.0,0.07117125]
[1773170365013,0.03,70270.0,70247.0,0.07153845]
[1773170365014,0.01254495,70267.0,70247.0,0.07153845]
[1773170365214,0.03,70264.0,70251.0,0.07117336]
[1773170365414,0.04254495,70264.0,70251.0,0.07117336]
[1773170365857,0.03,70262.0,70250.0,0.07140405]
[1773170366009,0.03,70260.0,70250.0,0.07140405]
[1773170366447,0.03,70260.0,70245.0,0.01344525]
[1773170366448,0.03,70258.0,70242.0,0.07118151]
[1773170367269,0.03,70258.0,70242.0,0.08462676]
[1773170367663,0.10116644,70258.0,70243.0,0.01344525]
[1773170367841,0.03,70258.0,70243.0,0.01344525]
[1773170368030,0.10116679,70258.0,70243.0,0.01344525]
[1773170368478,0.03,70258.0,70243.0,0.01344525]
[1773170368623,0.03,70256.0,70241.0,0.07118349]
[1773170368830,0.03,70254.0,70241.0,0.07118349]
[1773170369028,0.00144,70253.0,70241.0,0.07118349]
[1773170369841,0.03144,70253.0,70241.0,0.07118349]
[1773170370390,0.10261151,70253.0,70241.0,0.07129575]
[1773170370814,0.03144,70253.0,70241.0,0.07129575]
[1773170371146,0.03,70253.0,70241.0,0.07129575]
[1773170371354,0.00144,70252.0,70241.0,0.07129575]
[1773170371803,0.00144,70252.0,70243.0,0.0002]
[1773170372407,0.03,70252.0,70243.0,0.0002]
[1773170372616,0.08370651,70263.0,70244.0,0.01344525]
[1773170372837,0.00023,70275.0,70244.0,0.01344525]
[1773170373162,0.00144,70273.0,70245.0,0.07117944]
[1773170373378,0.00144,70273.0,70246.0,0.01344525]
[1773170373553,0.03,70272.0,70247.0,0.00144]
[1773170373847,0.03,70272.0,70248.0,0.01344525]
[1773170374575,0.03,70271.0,70248.0,0.01344525]
[1773170375284,0.00144,70273.0,70250.0,0.01344525]
[1773170375508,0.00023,70275.0,70252.0,0.01344525]
[1773170375689,0.00023,70275.0,70254.0,0.01344525]
[1773170376556,0.03023,70275.0,70254.0,0.01344525]
[1773170376939,0.03,70271.0,70253.0,0.00144]
[1773170377145,0.03,70271.0,70254.0,0.01344525]
[1773170377662,0.03,70271.0,70255.0,0.08461456]
[1773170377663,0.00144,70270.0,70255.0,0.08461456]
[1773170378067,0.03,70268.0,70255.0,0.07116931]
[1773170378270,0.04254495,70266.0,70252.0,0.00144]
[1773170378480,0.04254495,70266.0,70251.0,0.07117136]
[1773170378634,0.03,70264.0,70251.0,0.07117136]
[1773170378840,0.03,70264.0,70250.0,0.07117437]
[1773170378841,0.03,70261.0,70250.0,0.07117437]
[1773170379145,0.03144,70261.0,70249.0,0.07117539]
[1773170379753,0.03,70260.0,70249.0,0.07117539]
[1773170380763,0.00144,70261.0,70248.0,0.00144]
[1773170380764,0.03,70259.0,70248.0,0.00144]
[1773170380964,0.00010481,70258.0,70243.0,0.0002]
[1773170381216,0.00010481,70258.0,70239.0,0.07118509]
[1773170381525,0.00010481,70258.0,70241.0,0.07129548]
[1773170381719,0.16075261,70260.0,70241.0,0.07149548]
[1773170381889,5.157e-05,70258.0,70241.0,0.07149548]
[1773170382436,0.00144,70257.0,70242.0,0.01453956]
[1773170382811,0.07116525,70259.0,70242.0,0.01453956]
[1773170383010,0.00144,70256.0,70242.0,0.01453956]
[1773170383421,0.00144,70255.0,70242.0,0.01453956]
[1773170383618,0.07116525,70259.0,70242.0,0.01453956]
[1773170383827,0.07116525,70259.0,70244.0,0.01459197]
[1773170383828,0.10116662,70258.0,70244.0,0.01459197]
[1773170384026,0.00144,70257.0,70244.0,0.01459197]
[1773170384225,0.00144,70256.0,70244.0,0.01459197]
[1773170384607,0.03,70258.0,70244.0,0.01459197]
[1773170384827,0.00144,70257.0,70244.0,0.01459197]
[1773170385024,0.03,70260.0,70244.0,0.01459197]
[1773170385521,0.00144,70259.0,70244.0,0.01459197]
[1773170385725,0.00144,70258.0,70244.0,0.01459197]
[1773170385926,0.03,70256.0,70245.0,0.07117944]
[1773170387004,0.03,70257.0,70246.0,0.0146416]
[1773170387905,0.00144,70259.0,70247.0,0.07117741]
[1773170388202,0.03,70260.0,70248.0,0.0146416]
[1773170388203,0.00144,70258.0,70248.0,0.0146416]
[1773170389626,0.07115741,70267.0,70248.0,0.0146416]
[1773170389627,0.07115931,70265.0,70248.0,0.0146416]
[1773170389826,0.00144,70264.0,70248.0,0.0146416]
[1773170389984,0.0711612,70263.0,70250.0,0.01473883]
[1773170390189,0.03144,70262.0,70250.0,0.01473883]
[1773170391104,0.00144,70262.0,70250.0,0.01473883]
[1773170392106,0.00144,70261.0,70252.0,0.0148049]
[1773170394017,0.00144,70261.0,70253.0,0.07117133]
[1773170399163,0.03144,70261.0,70253.0,0.07117133]
[1773170400059,0.00144,70261.0,70254.0,0.01498286]
[1773170400476,0.00144,70261.0,70249.0,0.07117485]
[1773170400692,9.388e-05,70260.0,70244.0,0.07117843]
[1773170401126,9.388e-05,70260.0,70243.0,0.07138045]
[1773170401127,9.388e-05,70260.0,70243.0,0.07138068]
[1773170401546,9.388e-05,70260.0,70243.0,0.08639528]
[1773170402614,0.03,70259.0,70243.0,0.08639528]
[1773170402812,5.651e-05,70258.0,70243.0,0.0152146]
[1773170403030,0.00023,70275.0,70241.0,0.01504457]
[1773170403243,0.00023,70275.0,70251.0,0.01504457]
[1773170403590,0.00023,70275.0,70238.0,0.00144]
[1773170403591,0.00023,70275.0,70253.0,0.01504457]
[1773170403592,5.651e-05,70273.0,70253.0,0.01504457]
[1773170403797,5.651e-05,70273.0,70233.0,0.21062856]
[1773170403798,0.03011216,70273.0,70255.0,0.01504457]
[1773170403999,0.03011216,70273.0,70240.0,0.16207134]
[1773170404000,0.00144,70281.0,70261.0,0.01504457]
[1773170404183,0.0767519,70292.0,70263.0,0.01504457]
[1773170404391,0.00144,70287.0,70263.0,0.01504457]
[1773170404562,0.00144,70287.0,70261.0,0.00155216]
[1773170404563,0.00282163,70285.0,70261.0,0.00155216]
[1773170404891,0.00282163,70285.0,70262.0,0.07116222]
[1773170404892,0.03,70279.0,70262.0,0.07116222]
[1773170405093,0.00144,70278.0,70262.0,0.07116222]
[1773170405739,0.03144,70278.0,70262.0,0.07116222]
[1773170407005,0.03,70276.0,70261.0,0.00011216]
[1773170407139,0.03,70276.0,70261.0,0.07127492]
[1773170408333,0.03144,70275.0,70262.0,0.0294342]
[1773170409208,0.00144,70275.0,70263.0,0.0711612]
[1773170409815,0.03,70276.0,70263.0,0.0711612]
[1773170410014,0.00144,70275.0,70263.0,0.10059726]
[1773170410215,0.00144,70275.0,70263.0,0.0711612]
[1773170410549,0.00144,70274.0,70264.0,0.02943606]
[1773170411328,0.03144,70274.0,70265.0,0.07115918]
[1773170411506,0.03,70274.0,70265.0,0.07115918]
[1773170411707,0.03144,70274.0,70265.0,0.07115918]
[1773170412306,0.03,70273.0,70261.0,0.00011216]
[1773170412651,0.03,70273.0,70261.0,0.07127507]
[1773170413433,0.03,70273.0,70261.0,0.00011216]
[1773170414193,0.03,70273.0,70251.0,0.07117336]
[1773170414194,0.03,70270.0,70251.0,0.07117336]
[1773170414393,0.03011218,70270.0,70251.0,0.07117336]
[1773170414522,0.03011218,70270.0,70251.0,0.10061209]
[1773170414945,0.03,70269.0,70251.0,0.10061209]
[1773170415123,0.00144,70268.0,70250.0,0.07140336]
[1773170415325,0.03,70259.0,70250.0,0.0714041]
[1773170415538,0.10260539,70259.0,70250.0,0.00023]
[1773170415739,0.03144,70259.0,70250.0,0.07140428]
[1773170416337,0.00144,70259.0,70250.0,0.07140428]
[1773170416694,0.00130928,70259.0,70250.0,0.07140428]
[1773170417261,0.03,70258.0,70250.0,0.07140428]
[1773170418408,0.00130928,70259.0,70250.0,0.07140428]
[1773170418987,0.03,70258.0,70250.0,0.00023]
[1773170419633,0.03,70258.0,70250.0,0.07140405]
[1773170419923,0.03,70258.0,70241.0,0.07118348]
[1773170419924,0.10116652,70258.0,70241.0,0.07118348]
[1773170420126,0.10116652,70258.0,70240.0,0.07118428]
[1773170420336,0.10116652,70258.0,70239.0,0.07118463]
[1773170420543,0.10116652,70258.0,70241.0,0.07118306]
[1773170420745,0.10116652,70258.0,70239.0,0.07118512]
[1773170420974,0.10116652,70258.0,70236.0,0.07680839]
[1773170422183,0.10116652,70258.0,70236.0,0.10625106]
[1773170423018,0.10116652,70258.0,70236.0,0.07680839]
[1773170423211,0.10116652,70258.0,70237.0,0.02945163]
[1773170423801,0.10116652,70258.0,70236.0,0.00562]
[1773170423802,0.16207134,70250.0,70236.0,0.00562]
[1773170424001,0.03144,70249.0,70229.0,0.07119519]
[1773170424958,0.03144,70249.0,70228.0,0.0004782]
[1773170425722,0.03,70247.0,70228.0,0.0004782]
[1773170426516,0.03,70247.0,70228.0,0.03180846]
[1773170426943,0.03111212,70247.0,70228.0,0.0004782]
[1773170427177,0.03011212,70247.0,70228.0,0.0004782]
[1773170427531,0.03,70239.0,70225.0,0.00043]
[1773170427737,0.00144,70238.0,70225.0,0.07162929]
[1773170427938,0.03,70236.0,70226.0,0.03133268]
[1773170428138,0.03,70236.0,70226.0,0.01605785]
[1773170428801,0.00011212,70247.0,70226.0,0.01605785]
[1773170429007,0.10128975,70247.0,70228.0,0.01605785]
[1773170429214,0.00793523,70264.0,70232.0,0.01605785]
[1773170429421,0.00793523,70264.0,70232.0,0.01616997]
[1773170429422,0.00144,70254.0,70232.0,0.01616997]
[1773170429577,0.00144,70254.0,70234.0,0.01605785]
[1773170429769,0.07138537,70259.0,70234.0,0.01605785]
[1773170429967,0.03,70256.0,70236.0,0.01605785]
[1773170430427,0.00144,70255.0,70236.0,0.01605785]
[1773170430622,0.03,70256.0,70236.0,0.01605785]
[1773170431006,0.00144,70255.0,70236.0,0.01605785]
[1773170432295,0.03,70254.0,70238.0,0.01925881]
[1773170432446,0.03,70254.0,70240.0,0.01925881]
[1773170432650,0.03,70254.0,70231.0,0.07119276]
[1773170432850,0.03,70254.0,70232.0,0.09200253]
[1773170433063,0.03,70254.0,70236.0,0.501]
[1773170433415,0.03,70254.0,70236.0,0.5]
[1773170433832,0.03,70254.0,70232.0,0.00011212]
[1773170434041,0.0726102,70255.0,70232.0,0.00011212]
[1773170434042,0.03,70249.0,70232.0,0.00011212]
[1773170434243,0.03,70247.0,70232.0,0.00011212]
[1773170434370,0.00144,70246.0,70232.0,0.00011212]
[1773170436237,0.00144,70246.0,70221.0,0.0002]
[1773170436238,0.03,70241.0,70221.0,0.0002]
[1773170436433,0.03,70241.0,70221.0,0.00057437]
[1773170436633,0.03,70241.0,70218.0,0.07140625]
[1773170437000,0.03,70241.0,70218.0,0.0002]
[1773170437001,0.03,70229.0,70218.0,0.0002]
[1773170437153,0.00020715,70225.0,70214.0,0.0002]
[1773170437355,0.00020715,70225.0,70206.0,0.0002]
[1773170437538,0.03,70219.0,70206.0,0.0002]
[1773170437723,0.00144,70218.0,70206.0,0.0002]
[1773170438134,0.03,70216.0,70206.0,0.0002]
[1773170438344,0.00144,70223.0,70210.0,0.01804323]
[1773170438669,0.06832398,70241.0,70212.0,0.01804323]
[1773170438670,0.07118714,70238.0,70212.0,0.01804323]
[1773170438876,0.0002079,70236.0,70212.0,0.01841736]
[1773170439073,0.0002079,70236.0,70213.0,0.01814681]
[1773170439881,0.03144,70237.0,70212.0,0.00037413]
[1773170439882,0.00030631,70228.0,70212.0,0.00037413]
[1773170440092,0.00030631,70226.0,70212.0,0.00037413]
[1773170440292,0.03,70224.0,70212.0,0.00037413]
[1773170440512,0.07119971,70225.0,70208.0,0.00562]
[1773170440513,0.00030631,70220.0,70208.0,0.00562]
[1773170440725,0.00156983,70219.0,70208.0,0.00562]
[1773170440958,0.00126352,70219.0,70208.0,0.00562]
[1773170442112,0.00144,70218.0,70209.0,0.01825076]
[1773170442332,0.00144,70218.0,70190.0,0.16225725]
[1773170442333,0.01538576,70217.0,70200.0,0.00023]
[1773170442536,0.01538576,70217.0,70181.0,0.21259853]
[1773170442537,0.01538576,70217.0,70197.0,1e-08]
[1773170442538,0.03,70209.0,70197.0,1e-08]
[1773170442739,0.03,70209.0,70198.0,0.01605785]
[1773170443148,0.03,70209.0,70197.0,1e-08]
[1773170443349,0.03,70209.0,70197.0,0.07122773]
[1773170443556,0.03144,70210.0,70197.0,1e-08]
[1773170443759,0.03144,70210.0,70197.0,0.07122792]
[1773170443963,0.03126352,70210.0,70197.0,1e-08]
[1773170444175,0.03108702,70210.0,70197.0,0.07122786]
[1773170444523,0.10230202,70210.0,70197.0,0.07122786]
[1773170444721,0.07157938,70220.0,70198.0,0.01605785]
[1773170444944,0.00144,70219.0,70198.0,0.01605785]
[1773170445146,0.0018139,70220.0,70198.0,0.01605785]
[1773170445348,0.07301917,70220.0,70198.0,0.01605785]
[1773170445551,0.07301917,70220.0,70200.0,0.01605785]
[1773170445753,0.07301917,70220.0,70197.0,0.01605786]
[1773170445754,0.07120579,70219.0,70197.0,0.01605786]
[1773170445958,0.01538576,70218.0,70197.0,0.01605786]
[1773170446191,0.07120579,70219.0,70189.0,0.01605785]
[1773170446192,0.01538576,70209.0,70189.0,0.01605785]
[1773170446359,0.01538576,70201.0,70180.0,0.00562]
[1773170446551,0.07122811,70197.0,70180.0,0.00562]
[1773170446754,0.01739711,70196.0,70180.0,0.00562]
[1773170446992,0.01739711,70196.0,70179.0,0.0002]
[1773170447192,0.07122811,70197.0,70168.0,0.07150582]
[1773170447193,0.0175444,70190.0,70168.0,0.07150599]
[1773170447459,0.0175444,70188.0,70168.0,0.07150599]
[1773170447839,0.0175444,70188.0,70168.0,0.00036146]
[1773170448054,0.00144,70189.0,70150.0,0.0005506]
[1773170448055,0.01754198,70179.0,70150.0,0.0005506]
[1773170448275,0.01718894,70169.0,70152.0,0.00011238]
[1773170448459,0.16225725,70170.0,70135.0,0.1494636]
[1773170448460,0.01718894,70167.0,70135.0,0.1494636]
[1773170448805,0.00023,70175.0,70138.0,0.01723526]
[1773170448806,0.00144,70166.0,70138.0,0.01723526]
[1773170449026,0.01741894,70175.0,70143.0,0.01723526]
[1773170449027,0.00144,70172.0,70143.0,0.01723526]
[1773170449230,0.00144,70172.0,70141.0,0.0781728]
[1773170449231,0.00144,70172.0,70145.0,0.01723526]
[1773170449374,0.00167,70175.0,70151.0,0.01875447]
[1773170449587,0.00167,70175.0,70153.0,0.01875447]
[1773170449804,0.00149345,70175.0,70155.0,0.01875447]
[1773170449967,0.00149345,70175.0,70157.0,0.01875447]
[1773170450167,0.00149345,70175.0,70159.0,0.01875447]
[1773170450375,0.16225725,70170.0,70142.0,0.01875447]
[1773170450614,0.16225725,70170.0,70144.0,0.01875447]
[1773170450821,0.07274397,70175.0,70146.0,0.01875447]
[1773170451259,0.00149345,70175.0,70148.0,0.01875447]
[1773170451476,5.345e-05,70175.0,70148.0,0.01875447]
[1773170451875,0.0727846,70175.0,70148.0,0.01875447]
[1773170452115,0.0727846,70175.0,70149.0,0.00144]
[1773170452302,0.0727846,70175.0,70150.0,0.02019447]
[1773170452534,0.01712208,70174.0,70150.0,0.02019447]
[1773170452918,0.07107594,70173.0,70152.0,0.01875447]
[1773170453331,0.07278592,70175.0,70152.0,0.01875447]